[Event "Titled Tuesday Blitz May 23 Early 2023"]
[White "Thecourseoisildur"]
[Black "Siva Mahadevan"]
[BlackFideId "25043153"]
[WhiteElo "2588"]
[BlackElo "2249"]
[Result "1-0"]
[Round "11"]
[TimeControl "180+2"]
[Date "2023.05.23"]
[WhiteClock "0:00:02"]
[BlackClock "0:01:21"]

1. e4 {[%clk 0:03:00]}  c5 {[%clk 0:02:59]} 2. Nf3 {[%clk 0:02:59]}  Nc6 {[%clk 0:02:59]} 3. Bb5 {[%clk 0:02:55]}  Na5 {[%clk 0:02:59]} 4. O-O {[%clk 0:02:52]}  a6 {[%clk 0:02:59]} 5. Be2 {[%clk 0:02:52]}  b5 {[%clk 0:03:00]} 6. d4 {[%clk 0:02:52]}  cxd4 {[%clk 0:03:01]} 7. Nxd4 {[%clk 0:02:52]}  Bb7 {[%clk 0:03:02]} 8. Nc3 {[%clk 0:02:51]}  e6 {[%clk 0:03:02]} 9. a3 {[%clk 0:02:47]}  Nf6 {[%clk 0:03:01]} 10. e5 {[%clk 0:02:43]}  Nd5 {[%clk 0:03:01]} 11. Ne4 {[%clk 0:02:38]}  Qc7 {[%clk 0:02:58]} 12. f4 {[%clk 0:02:31]}  Nc4 {[%clk 0:02:58]} 13. Bxc4 {[%clk 0:02:20]}  bxc4 {[%clk 0:02:58]} 14. c3 {[%clk 0:02:17]}  Be7 {[%clk 0:02:56]} 15. Qh5 {[%clk 0:01:43]}  g6 {[%clk 0:02:56]} 16. Qh6 {[%clk 0:01:41]}  Bf8 {[%clk 0:02:53]} 17. Qh4 {[%clk 0:01:38]}  Be7 {[%clk 0:02:51]} 18. Qh6 {[%clk 0:01:35]}  O-O-O {[%clk 0:02:51]} 19. a4 {[%clk 0:01:18]}  f6 {[%clk 0:02:48]} 20. exf6 {[%clk 0:01:14]}  Nxf6 {[%clk 0:02:49]} 21. Nxf6 {[%clk 0:01:12]}  Bxf6 {[%clk 0:02:50]} 22. Be3 {[%clk 0:01:11]}  Rdf8 {[%clk 0:02:45]} 23. a5 {[%clk 0:01:09]}  Qc5 {[%clk 0:02:43]} 24. Qh3 {[%clk 0:01:03]}  Qh5 {[%clk 0:02:37]} 25. Qxh5 {[%clk 0:00:59]}  gxh5 {[%clk 0:02:38]} 26. Ra4 {[%clk 0:00:58]}  Bd5 {[%clk 0:02:38]} 27. Rb4 {[%clk 0:00:56]}  Rhg8 {[%clk 0:02:38]} 28. Rf2 {[%clk 0:00:55]}  Bh4 {[%clk 0:02:38]} 29. Rd2 {[%clk 0:00:51]}  Bd8 {[%clk 0:02:35]} 30. Ra4 {[%clk 0:00:48]}  Bc7 {[%clk 0:02:34]} 31. Rf2 {[%clk 0:00:45]}  h4 {[%clk 0:02:34]} 32. Ne2 {[%clk 0:00:43]}  h3 {[%clk 0:02:32]} 33. g3 {[%clk 0:00:42]}  h5 {[%clk 0:02:33]} 34. Bc5 {[%clk 0:00:38]}  Rf7 {[%clk 0:02:32]} 35. Bb6 {[%clk 0:00:27]}  Bd6 {[%clk 0:02:32]} 36. Ra1 {[%clk 0:00:22]}  h4 {[%clk 0:02:31]} 37. Rd1 {[%clk 0:00:22]}  Kb7 {[%clk 0:02:29]} 38. Bd4 {[%clk 0:00:16]}  Bb8 {[%clk 0:02:20]} 39. Be5 {[%clk 0:00:15]}  d6 {[%clk 0:02:20]} 40. Bd4 {[%clk 0:00:15]}  Kc6 {[%clk 0:02:20]} 41. Be3 {[%clk 0:00:14]}  e5 {[%clk 0:02:17]} 42. fxe5 {[%clk 0:00:14]}  dxe5 {[%clk 0:02:16]} 43. Rxd5 {[%clk 0:00:10]}  Kxd5 {[%clk 0:01:59]} 44. Rxf7 {[%clk 0:00:10]}  Ke4 {[%clk 0:02:00]} 45. Kf2 {[%clk 0:00:07]}  Kd3 {[%clk 0:01:56]} 46. Rd7+ {[%clk 0:00:07]}  Kc2 {[%clk 0:01:57]} 47. Rd2+ {[%clk 0:00:06]}  Kb3 {[%clk 0:01:57]} 48. Nc1+ {[%clk 0:00:07]}  Ka4 {[%clk 0:01:58]} 49. gxh4 {[%clk 0:00:05]}  e4 {[%clk 0:01:57]} 50. Rd4 {[%clk 0:00:03]}  Rg2+ {[%clk 0:01:56]} 51. Kf1 {[%clk 0:00:03]}  Bxh2 {[%clk 0:01:49]} 52. Rxc4+ {[%clk 0:00:03]}  Kxa5 {[%clk 0:01:48]} 53. Rb4 {[%clk 0:00:02]}  Bc7 {[%clk 0:01:21]} 54. Nb3# {[%clk 0:00:02]} 1-0


[Site "https://www.chess.com"]

[Event "Titled Tuesday Blitz May 23 Early 2023"]
[White "Fier, Alexandr"]
[Black "Kiremitciyan, Ari"]
[WhiteFideId "2107139"]
[BlackFideId "6373445"]
[WhiteElo "2610"]
[BlackElo "2181"]
[Result "1-0"]
[Round "11"]
[TimeControl "180+2"]
[Date "2023.05.23"]
[WhiteClock "0:02:32"]
[BlackClock "0:00:00"]

1. e4 {[%clk 0:03:00]}  e5 {[%clk 0:02:59]} 2. f4 {[%clk 0:03:00]}  exf4 {[%clk 0:02:59]} 3. Nf3 {[%clk 0:03:01]}  Nf6 {[%clk 0:02:59]} 4. e5 {[%clk 0:03:01]}  Nh5 {[%clk 0:02:59]} 5. Qe2 {[%clk 0:03:02]}  g6 {[%clk 0:02:53]} 6. d4 {[%clk 0:03:00]}  Be7 {[%clk 0:02:50]} 7. Nc3 {[%clk 0:03:01]}  d5 {[%clk 0:02:42]} 8. Bd2 {[%clk 0:02:58]}  Be6 {[%clk 0:02:32]} 9. O-O-O {[%clk 0:02:58]}  Nd7 {[%clk 0:02:23]} 10. Qf2 {[%clk 0:02:59]}  c5 {[%clk 0:02:15]} 11. g3 {[%clk 0:02:59]}  fxg3 {[%clk 0:02:04]} 12. hxg3 {[%clk 0:03:00]}  c4 {[%clk 0:01:56]} 13. g4 {[%clk 0:02:40]}  Bxg4 {[%clk 0:01:28]} 14. Nxd5 {[%clk 0:02:40]}  b5 {[%clk 0:01:25]} 15. Nxe7 {[%clk 0:02:38]}  Qxe7 {[%clk 0:01:19]} 16. Bg5 {[%clk 0:02:38]}  Qb4 {[%clk 0:01:03]} 17. c3 {[%clk 0:02:33]}  Qa4 {[%clk 0:01:02]} 18. Rh4 {[%clk 0:02:31]}  Bf5 {[%clk 0:00:54]} 19. Rxh5 {[%clk 0:02:31]}  gxh5 {[%clk 0:00:34]} 20. Nh4 {[%clk 0:02:31]}  Be4 {[%clk 0:00:20]} 21. Bg2 {[%clk 0:02:31]}  Bxg2 {[%clk 0:00:13]} 22. Qxg2 {[%clk 0:02:32]}  Rc8 {[%clk 0:00:11]} 23. e6 {[%clk 0:02:32]}  fxe6 {[%clk 0:00:07]} 24. Re1 {[%clk 0:02:33]}  Nf8 {[%clk 0:00:00]} 25. Qb7 {[%clk 0:02:32]} 1-0


[Site "https://www.chess.com"]

[Event "Titled Tuesday Blitz May 23 Early 2023"]
[White "Ilamparthi A R"]
[Black "robertoalejandro10"]
[WhiteFideId "45015775"]
[WhiteElo "2348"]
[BlackElo "2571"]
[Result "1-0"]
[Round "11"]
[TimeControl "180+2"]
[Date "2023.05.23"]
[WhiteClock "0:00:28"]
[BlackClock "0:00:00"]

1. e4 {[%clk 0:02:58]}  c5 {[%clk 0:02:59]} 2. Nf3 {[%clk 0:02:58]}  g6 {[%clk 0:02:59]} 3. d3 {[%clk 0:02:58]}  Bg7 {[%clk 0:02:59]} 4. g3 {[%clk 0:02:58]}  Nc6 {[%clk 0:03:00]} 5. Bg2 {[%clk 0:02:59]}  Nf6 {[%clk 0:03:01]} 6. O-O {[%clk 0:02:58]}  O-O {[%clk 0:03:01]} 7. Re1 {[%clk 0:02:59]}  b6 {[%clk 0:03:02]} 8. c3 {[%clk 0:02:58]}  Bb7 {[%clk 0:03:01]} 9. Nbd2 {[%clk 0:02:55]}  d6 {[%clk 0:02:56]} 10. Nc4 {[%clk 0:02:55]}  d5 {[%clk 0:02:53]} 11. exd5 {[%clk 0:02:48]}  Nxd5 {[%clk 0:02:54]} 12. h4 {[%clk 0:02:45]}  Nf6 {[%clk 0:02:51]} 13. a4 {[%clk 0:02:28]}  Rb8 {[%clk 0:02:45]} 14. Bf4 {[%clk 0:02:22]}  Rc8 {[%clk 0:02:45]} 15. Nfe5 {[%clk 0:02:17]}  h5 {[%clk 0:02:42]} 16. a5 {[%clk 0:02:12]}  b5 {[%clk 0:02:29]} 17. a6 {[%clk 0:01:56]}  Ba8 {[%clk 0:02:28]} 18. Nxc6 {[%clk 0:01:56]}  Bxc6 {[%clk 0:02:29]} 19. Bxc6 {[%clk 0:01:56]}  Rxc6 {[%clk 0:02:30]} 20. Ne5 {[%clk 0:01:57]}  Rd6 {[%clk 0:02:27]} 21. Qb3 {[%clk 0:01:53]}  Rb6 {[%clk 0:02:23]} 22. Rad1 {[%clk 0:01:39]}  Qd5 {[%clk 0:02:20]} 23. Qc2 {[%clk 0:01:35]}  Rxa6 {[%clk 0:02:16]} 24. c4 {[%clk 0:01:30]}  Qb7 {[%clk 0:02:12]} 25. Qb3 {[%clk 0:01:29]}  Rb6 {[%clk 0:02:05]} 26. cxb5 {[%clk 0:01:23]}  Rxb5 {[%clk 0:02:05]} 27. Qc4 {[%clk 0:01:24]}  Rxb2 {[%clk 0:01:49]} 28. Nxg6 {[%clk 0:01:21]}  e6 {[%clk 0:01:36]} 29. Nxf8 {[%clk 0:01:13]}  Bxf8 {[%clk 0:01:30]} 30. Be5 {[%clk 0:01:11]}  Rb4 {[%clk 0:01:26]} 31. Qc1 {[%clk 0:01:11]}  Bg7 {[%clk 0:01:07]} 32. Qxc5 {[%clk 0:00:49]}  Nd5 {[%clk 0:01:05]} 33. Bxg7 {[%clk 0:00:45]}  Kxg7 {[%clk 0:01:06]} 34. Qd6 {[%clk 0:00:41]}  Rg4 {[%clk 0:01:00]} 35. Qe5+ {[%clk 0:00:39]}  Kg6 {[%clk 0:00:59]} 36. Re4 {[%clk 0:00:38]}  Nf6 {[%clk 0:00:20]} 37. Rxg4+ {[%clk 0:00:35]}  Nxg4 {[%clk 0:00:21]} 38. Qg5+ {[%clk 0:00:35]}  Kh7 {[%clk 0:00:19]} 39. Qxh5+ {[%clk 0:00:34]}  Nh6 {[%clk 0:00:20]} 40. Rc1 {[%clk 0:00:32]}  Qa6 {[%clk 0:00:16]} 41. Rc7 {[%clk 0:00:30]}  Qa1+ {[%clk 0:00:15]} 42. Kg2 {[%clk 0:00:31]}  Qf6 {[%clk 0:00:16]} 43. Rxa7 {[%clk 0:00:30]}  Kg7 {[%clk 0:00:16]} 44. Qg5+ {[%clk 0:00:30]}  Qxg5 {[%clk 0:00:15]} 45. hxg5 {[%clk 0:00:31]}  Nf5 {[%clk 0:00:16]} 46. f4 {[%clk 0:00:31]}  Nd4 {[%clk 0:00:16]} 47. Kf2 {[%clk 0:00:31]}  Nb5 {[%clk 0:00:16]} 48. Rd7 {[%clk 0:00:31]}  Kg6 {[%clk 0:00:15]} 49. Kf3 {[%clk 0:00:30]}  Kg7 {[%clk 0:00:15]} 50. d4 {[%clk 0:00:30]}  Kf8 {[%clk 0:00:15]} 51. d5 {[%clk 0:00:29]}  exd5 {[%clk 0:00:09]} 52. Rxd5 {[%clk 0:00:29]}  Nc7 {[%clk 0:00:10]} 53. Rd3 {[%clk 0:00:29]}  Ne6 {[%clk 0:00:10]} 54. Kg4 {[%clk 0:00:29]}  Kg7 {[%clk 0:00:10]} 55. f5 {[%clk 0:00:29]}  Nc5 {[%clk 0:00:10]} 56. Rd5 {[%clk 0:00:29]}  Ne4 {[%clk 0:00:10]} 57. Kf4 {[%clk 0:00:29]}  Nf2 {[%clk 0:00:10]} 58. Rd7 {[%clk 0:00:28]}  Nh3+ {[%clk 0:00:10]} 59. Kg4 {[%clk 0:00:29]}  Nf2+ {[%clk 0:00:10]} 60. Kh5 {[%clk 0:00:29]}  Ne4 {[%clk 0:00:07]} 61. f6+ {[%clk 0:00:28]}  Kg8 {[%clk 0:00:00]} 62. Kh6 {[%clk 0:00:28]} 1-0


[Site "https://www.chess.com"]

[Event "Titled Tuesday Blitz May 23 Early 2023"]
[White "Han, Yichen"]
[Black "Ioannidis, Evgenios"]
[WhiteFideId "1054430"]
[BlackFideId "4229274"]
[WhiteElo "2342"]
[BlackElo "2386"]
[Result "1/2-1/2"]
[Round "11"]
[TimeControl "180+2"]
[Date "2023.05.23"]
[WhiteClock "0:00:04"]
[BlackClock "0:00:18"]

1. d4 {[%clk 0:03:00]}  Nf6 {[%clk 0:02:59]} 2. c4 {[%clk 0:03:00]}  e6 {[%clk 0:02:59]} 3. Nc3 {[%clk 0:02:59]}  Bb4 {[%clk 0:03:00]} 4. e3 {[%clk 0:02:58]}  d5 {[%clk 0:03:00]} 5. Nf3 {[%clk 0:02:58]}  O-O {[%clk 0:03:00]} 6. Bd2 {[%clk 0:02:59]}  Nbd7 {[%clk 0:02:53]} 7. Qc2 {[%clk 0:02:54]}  b6 {[%clk 0:02:46]} 8. a3 {[%clk 0:02:46]}  Bxc3 {[%clk 0:02:46]} 9. Bxc3 {[%clk 0:02:44]}  Ne4 {[%clk 0:02:45]} 10. Bd3 {[%clk 0:02:40]}  f5 {[%clk 0:02:44]} 11. b4 {[%clk 0:02:26]}  a5 {[%clk 0:02:29]} 12. O-O {[%clk 0:02:23]}  Bb7 {[%clk 0:02:04]} 13. c5 {[%clk 0:02:08]}  c6 {[%clk 0:01:44]} 14. Rfb1 {[%clk 0:01:53]}  b5 {[%clk 0:01:40]} 15. a4 {[%clk 0:01:46]}  axb4 {[%clk 0:01:38]} 16. Bxb4 {[%clk 0:01:39]}  bxa4 {[%clk 0:01:32]} 17. Rxa4 {[%clk 0:01:37]}  Rxa4 {[%clk 0:01:25]} 18. Qxa4 {[%clk 0:01:38]}  Qa8 {[%clk 0:01:21]} 19. Qa5 {[%clk 0:01:23]}  Rb8 {[%clk 0:01:11]} 20. Be1 {[%clk 0:00:49]}  Bc8 {[%clk 0:01:08]} 21. Qxa8 {[%clk 0:00:40]}  Rxa8 {[%clk 0:01:08]} 22. h4 {[%clk 0:00:35]}  Kf7 {[%clk 0:01:01]} 23. Bxe4 {[%clk 0:00:25]}  dxe4 {[%clk 0:00:58]} 24. Ng5+ {[%clk 0:00:24]}  Ke7 {[%clk 0:00:58]} 25. Nxh7 {[%clk 0:00:18]}  Ra2 {[%clk 0:00:55]} 26. Ng5 {[%clk 0:00:15]}  Ba6 {[%clk 0:00:56]} 27. Bc3 {[%clk 0:00:10]}  Rc2 {[%clk 0:00:48]} 28. Ba5 {[%clk 0:00:06]}  Nf6 {[%clk 0:00:48]} 29. Bc7 {[%clk 0:00:03]}  Ng4 {[%clk 0:00:48]} 30. Bd6+ {[%clk 0:00:04]}  Kd7 {[%clk 0:00:46]} 31. Bg3 {[%clk 0:00:04]}  Ra2 {[%clk 0:00:43]} 32. Nf7 {[%clk 0:00:04]}  Bd3 {[%clk 0:00:42]} 33. Rb7+ {[%clk 0:00:03]}  Kc8 {[%clk 0:00:37]} 34. Nd6+ {[%clk 0:00:04]}  Kd8 {[%clk 0:00:38]} 35. Nf7+ {[%clk 0:00:04]}  Ke8 {[%clk 0:00:38]} 36. Nd6+ {[%clk 0:00:04]}  Kf8 {[%clk 0:00:36]} 37. Rb8+ {[%clk 0:00:04]}  Ke7 {[%clk 0:00:36]} 38. Rb7+ {[%clk 0:00:04]}  Kf8 {[%clk 0:00:19]} 39. Rb8+ {[%clk 0:00:03]}  Ke7 {[%clk 0:00:20]} 40. Rb7+ {[%clk 0:00:04]}  Kd8 {[%clk 0:00:20]} 41. Rb8+ {[%clk 0:00:03]}  Kd7 {[%clk 0:00:17]} 42. Rb7+ {[%clk 0:00:04]}  Kd8 {[%clk 0:00:18]} 1/2-1/2


[Site "https://www.chess.com"]

[Event "Titled Tuesday Blitz May 23 Early 2023"]
[White "MKlose11"]
[Black "Gontcharov, Vladislav"]
[BlackFideId "4123492"]
[WhiteElo "2678"]
[BlackElo "2420"]
[Result "1/2-1/2"]
[Round "11"]
[TimeControl "180+2"]
[Date "2023.05.23"]
[WhiteClock "0:00:45"]
[BlackClock "0:00:17"]

1. e4 {[%clk 0:03:00]}  e6 {[%clk 0:02:59]} 2. Nf3 {[%clk 0:02:53]}  d5 {[%clk 0:02:59]} 3. e5 {[%clk 0:02:54]}  c5 {[%clk 0:02:59]} 4. b4 {[%clk 0:02:52]}  cxb4 {[%clk 0:02:59]} 5. a3 {[%clk 0:02:51]}  b3 {[%clk 0:02:55]} 6. cxb3 {[%clk 0:02:50]}  Nc6 {[%clk 0:02:54]} 7. d4 {[%clk 0:02:50]}  Nge7 {[%clk 0:02:53]} 8. Bd3 {[%clk 0:02:50]}  Nf5 {[%clk 0:02:52]} 9. Bb2 {[%clk 0:02:44]}  Nh4 {[%clk 0:02:51]} 10. O-O {[%clk 0:02:40]}  Nxf3+ {[%clk 0:02:47]} 11. Qxf3 {[%clk 0:02:40]}  Bd7 {[%clk 0:02:28]} 12. Nd2 {[%clk 0:02:38]}  Qb6 {[%clk 0:02:05]} 13. Qg4 {[%clk 0:02:34]}  h5 {[%clk 0:01:59]} 14. Qf4 {[%clk 0:02:30]}  Be7 {[%clk 0:01:30]} 15. b4 {[%clk 0:02:27]}  g5 {[%clk 0:01:29]} 16. Qe3 {[%clk 0:02:26]}  Nd8 {[%clk 0:01:24]} 17. f4 {[%clk 0:02:12]}  gxf4 {[%clk 0:01:24]} 18. Qxf4 {[%clk 0:02:11]}  Bb5 {[%clk 0:01:21]} 19. Rf3 {[%clk 0:01:58]}  Bxd3 {[%clk 0:01:20]} 20. Rxd3 {[%clk 0:01:59]}  Rc8 {[%clk 0:01:20]} 21. Nb3 {[%clk 0:01:49]}  Qb5 {[%clk 0:01:18]} 22. Rf3 {[%clk 0:01:46]}  b6 {[%clk 0:01:17]} 23. Raf1 {[%clk 0:01:45]}  h4 {[%clk 0:01:04]} 24. Qg4 {[%clk 0:01:41]}  Rf8 {[%clk 0:00:55]} 25. Bc1 {[%clk 0:01:40]}  Kd7 {[%clk 0:00:38]} 26. Bh6 {[%clk 0:01:32]}  Re8 {[%clk 0:00:37]} 27. Qh5 {[%clk 0:01:22]}  Qe2 {[%clk 0:00:30]} 28. Bg5 {[%clk 0:01:19]}  Rc2 {[%clk 0:00:26]} 29. R1f2 {[%clk 0:01:04]}  Qd1+ {[%clk 0:00:20]} 30. Rf1 {[%clk 0:01:04]}  Qe2 {[%clk 0:00:20]} 31. R1f2 {[%clk 0:00:45]}  Qd1+ {[%clk 0:00:19]} 32. Rf1 {[%clk 0:00:45]}  Qe2 {[%clk 0:00:17]} 1/2-1/2


[Site "https://www.chess.com"]

[Event "Titled Tuesday Blitz May 23 Early 2023"]
[White "gueraumasague"]
[Black "Simonian, Hrair"]
[BlackFideId "13302337"]
[WhiteElo "2557"]
[BlackElo "2447"]
[Result "0-1"]
[Round "11"]
[TimeControl "180+2"]
[Date "2023.05.23"]
[WhiteClock "0:00:00"]
[BlackClock "0:00:28"]

1. e4 {[%clk 0:03:00]}  c5 {[%clk 0:02:58]} 2. Nc3 {[%clk 0:03:01]}  Nc6 {[%clk 0:02:58]} 3. Bb5 {[%clk 0:03:02]}  Nd4 {[%clk 0:02:58]} 4. Nf3 {[%clk 0:03:01]}  a6 {[%clk 0:02:54]} 5. Bd3 {[%clk 0:03:00]}  g6 {[%clk 0:02:54]} 6. O-O {[%clk 0:02:49]}  Bg7 {[%clk 0:02:54]} 7. Nxd4 {[%clk 0:02:46]}  cxd4 {[%clk 0:02:54]} 8. Ne2 {[%clk 0:02:44]}  d5 {[%clk 0:02:55]} 9. exd5 {[%clk 0:02:32]}  Qxd5 {[%clk 0:02:56]} 10. c4 {[%clk 0:02:32]}  Qd6 {[%clk 0:02:41]} 11. Ng3 {[%clk 0:02:23]}  Nh6 {[%clk 0:02:38]} 12. Be4 {[%clk 0:02:13]}  O-O {[%clk 0:02:37]} 13. d3 {[%clk 0:02:13]}  f5 {[%clk 0:02:32]} 14. Bf3 {[%clk 0:02:11]}  e5 {[%clk 0:02:26]} 15. b4 {[%clk 0:01:58]}  Qxb4 {[%clk 0:02:05]} 16. Bd5+ {[%clk 0:01:57]}  Kh8 {[%clk 0:02:04]} 17. a4 {[%clk 0:01:51]}  Qa5 {[%clk 0:01:59]} 18. Rb1 {[%clk 0:01:44]}  Qc7 {[%clk 0:01:53]} 19. f4 {[%clk 0:01:43]}  Ng4 {[%clk 0:01:50]} 20. Qf3 {[%clk 0:01:35]}  Rb8 {[%clk 0:01:40]} 21. Re1 {[%clk 0:01:24]}  Ne3 {[%clk 0:01:37]} 22. Bxe3 {[%clk 0:01:06]}  dxe3 {[%clk 0:01:38]} 23. Ne2 {[%clk 0:00:59]}  exf4 {[%clk 0:01:22]} 24. Nxf4 {[%clk 0:01:00]}  g5 {[%clk 0:01:09]} 25. Ne6 {[%clk 0:00:49]}  Bxe6 {[%clk 0:01:08]} 26. Bxe6 {[%clk 0:00:50]}  g4 {[%clk 0:00:56]} 27. Qd5 {[%clk 0:00:25]}  g3 {[%clk 0:00:42]} 28. h3 {[%clk 0:00:11]}  Qe5 {[%clk 0:00:35]} 29. Rxb7 {[%clk 0:00:09]}  Rxb7 {[%clk 0:00:33]} 30. Qxb7 {[%clk 0:00:10]}  Qxe6 {[%clk 0:00:33]} 31. Qf3 {[%clk 0:00:04]}  Re8 {[%clk 0:00:30]} 32. Qe2 {[%clk 0:00:03]}  f4 {[%clk 0:00:30]} 33. Rf1 {[%clk 0:00:00]}  Qd6 {[%clk 0:00:28]} 0-1


[Site "https://www.chess.com"]

[Event "Titled Tuesday Blitz May 23 Early 2023"]
[White "Gheorghiu, Calin"]
[Black "Filipascu"]
[WhiteFideId "1200305"]
[WhiteElo "2223"]
[BlackElo "2553"]
[Result "0-1"]
[Round "11"]
[TimeControl "180+2"]
[Date "2023.05.23"]
[WhiteClock "0:00:04"]
[BlackClock "0:00:45"]

1. e4 {[%clk 0:03:00]}  c5 {[%clk 0:02:59]} 2. Nf3 {[%clk 0:02:59]}  e6 {[%clk 0:03:00]} 3. g3 {[%clk 0:02:58]}  Nc6 {[%clk 0:02:59]} 4. Bg2 {[%clk 0:02:57]}  e5 {[%clk 0:02:55]} 5. O-O {[%clk 0:02:56]}  Nf6 {[%clk 0:02:55]} 6. c3 {[%clk 0:02:54]}  Be7 {[%clk 0:02:46]} 7. Re1 {[%clk 0:02:52]}  O-O {[%clk 0:02:44]} 8. d4 {[%clk 0:02:51]}  cxd4 {[%clk 0:02:37]} 9. cxd4 {[%clk 0:02:51]}  d6 {[%clk 0:02:38]} 10. h3 {[%clk 0:02:47]}  exd4 {[%clk 0:02:27]} 11. Nxd4 {[%clk 0:02:46]}  Nxd4 {[%clk 0:02:28]} 12. Qxd4 {[%clk 0:02:46]}  Be6 {[%clk 0:02:29]} 13. Nc3 {[%clk 0:02:41]}  Qd7 {[%clk 0:02:28]} 14. Kh2 {[%clk 0:02:22]}  Rfd8 {[%clk 0:02:27]} 15. Be3 {[%clk 0:02:00]}  a6 {[%clk 0:02:20]} 16. Rad1 {[%clk 0:01:59]}  Rac8 {[%clk 0:02:16]} 17. f4 {[%clk 0:01:58]}  Qe8 {[%clk 0:02:09]} 18. Qd2 {[%clk 0:01:50]}  h6 {[%clk 0:01:59]} 19. f5 {[%clk 0:01:38]}  Bc4 {[%clk 0:01:54]} 20. b3 {[%clk 0:01:37]}  Bb5 {[%clk 0:01:54]} 21. a4 {[%clk 0:01:36]}  Bc6 {[%clk 0:01:54]} 22. Bb6 {[%clk 0:01:21]}  Rd7 {[%clk 0:01:54]} 23. Bd4 {[%clk 0:01:21]}  Qd8 {[%clk 0:01:48]} 24. Nd5 {[%clk 0:01:18]}  Bxd5 {[%clk 0:01:46]} 25. exd5 {[%clk 0:01:18]}  Nh7 {[%clk 0:01:44]} 26. Rc1 {[%clk 0:01:11]}  Rxc1 {[%clk 0:01:43]} 27. Rxc1 {[%clk 0:01:11]}  Bg5 {[%clk 0:01:43]} 28. Be3 {[%clk 0:01:07]}  Bxe3 {[%clk 0:01:40]} 29. Qxe3 {[%clk 0:01:07]}  Nf6 {[%clk 0:01:41]} 30. Qc3 {[%clk 0:01:07]}  Qe7 {[%clk 0:01:40]} 31. Re1 {[%clk 0:01:06]}  Qd8 {[%clk 0:01:38]} 32. Rc1 {[%clk 0:01:04]}  Kh7 {[%clk 0:01:35]} 33. Qc8 {[%clk 0:00:57]}  Qe7 {[%clk 0:01:24]} 34. Qb8 {[%clk 0:00:55]}  Qe5 {[%clk 0:01:15]} 35. Rc8 {[%clk 0:00:50]}  Qxf5 {[%clk 0:01:15]} 36. Rh8+ {[%clk 0:00:49]}  Kg6 {[%clk 0:01:15]} 37. Qc8 {[%clk 0:00:27]}  Re7 {[%clk 0:01:15]} 38. Qc4 {[%clk 0:00:24]}  Re1 {[%clk 0:01:03]} 39. Qc3 {[%clk 0:00:19]}  Qf2 {[%clk 0:00:52]} 40. Qd3+ {[%clk 0:00:18]}  Kg5 {[%clk 0:00:49]} 41. h4+ {[%clk 0:00:17]}  Kh5 {[%clk 0:00:49]} 42. Kh3 {[%clk 0:00:13]}  Ng4 {[%clk 0:00:49]} 43. Rxh6+ {[%clk 0:00:04]}  gxh6 {[%clk 0:00:45]} 0-1


[Site "https://www.chess.com"]